lending/lending_fUSD_20240509
["ID","MTS","AMOUNT","RATE_DAILY","PERIOD"]
[326712154,1715276053414,-500.0,0.00041369,31]
[326712155,1715276053458,-500.0,0.00041369,31]
[326712156,1715276053504,-500.0,0.00041369,31]
[326712157,1715276053549,-500.0,0.00041369,31]
[326712158,1715276053592,-502.25335916,0.00041369,31]
[326712159,1715276053638,-1955.5,0.00041369,31]
[326712160,1715276053681,-500.0,0.00041369,31]
[326712161,1715276053724,-500.0,0.00041369,31]
[326712162,1715276053766,-506.51492485,0.00041369,31]
[326712163,1715276053810,-500.0,0.00041369,31]
[326712164,1715276053855,-2375.7,0.00041369,31]
[326712165,1715276053900,-1807.97,0.00041369,31]
[326712166,1715276053944,-500.0,0.00041369,31]
[326712167,1715276053989,-500.0,0.00041369,31]
[326712168,1715276054033,-2512.08,0.00041369,31]
[326712169,1715276054086,-500.0,0.00041369,31]
[326712170,1715276054135,-2145.88,0.00041369,31]
[326712171,1715276054183,-500.0,0.00041369,31]
[326712172,1715276054230,-500.0,0.00041369,31]
[326712173,1715276054278,-500.0,0.00041369,31]
[326712174,1715276054324,-777.09,0.00041369,31]
[326712175,1715276054370,-500.0,0.00041369,31]
[326712176,1715276054417,-500.0,0.00041369,31]
[326712177,1715276054463,-747.28,0.00041369,31]
[326712178,1715276054509,-500.0,0.00041369,31]
[326712179,1715276054556,-500.0,0.00041369,31]
[326712180,1715276054603,-16162.22,0.00041369,31]
[326712181,1715276054653,-2033.44,0.00041369,31]
[326712182,1715276054700,-500.0,0.00041369,31]
[326712183,1715276054747,-1224.97,0.00041369,31]
[326712184,1715276054795,-500.0,0.00041369,31]
[326712185,1715276054840,-658.83,0.00041369,31]
[326712186,1715276054886,-500.0,0.00041369,31]
[326712187,1715276054933,-540.87,0.00041369,31]
[326712188,1715276054978,-2448.23,0.00041369,31]
[326712189,1715276055023,-500.0,0.00041369,31]
[326712190,1715276055069,-19597.34,0.00041369,31]
[326712191,1715276055115,-500.0,0.00041369,31]
[326712192,1715276055158,-2000.0,0.00041369,90]
[326712193,1715276055202,-500.0,0.00041369,31]
[326712194,1715276055246,-500.0,0.00041369,31]
[326712195,1715276055290,-500.0,0.00041369,31]
[326712196,1715276055333,-500.0,0.00041369,31]
[326712197,1715276055377,-500.0,0.00041369,31]
[326712198,1715276055421,-500.0,0.00041369,31]
[326712199,1715276055466,-500.0,0.00041369,31]
[326712200,1715276055511,-500.0,0.00041369,31]
[326712201,1715276055555,-500.0,0.00041369,31]
[326712202,1715276055600,-2171.73,0.00041369,31]
[326712203,1715276055647,-1529.27,0.00041369,31]
[326712204,1715276055690,-2878.88,0.00041369,31]
[326712205,1715276055737,-500.0,0.00041369,31]
[326712206,1715276055782,-500.0,0.00041369,31]
[326712207,1715276055827,-1546.03,0.00041369,31]
[326712208,1715276055873,-688.48,0.00041369,31]
[326712209,1715276055919,-506.63,0.00041369,31]
[326712210,1715276055965,-500.0,0.00041369,31]
[326712211,1715276056010,-612.62921156,0.00041369,31]
[326712212,1715276056054,-500.0,0.00041369,31]
[326712213,1715276056098,-500.0,0.00041369,31]
[326712214,1715276056142,-500.0,0.00041369,31]
[326712215,1715276056185,-500.0,0.00041369,31]
[326712216,1715276056228,-518.94755605,0.00041369,31]
[326712217,1715276056287,-500.0,0.00041369,31]
[326712218,1715276056333,-1591.54,0.00041369,31]
[326712219,1715276056381,-534.31702145,0.00041369,31]
[326712220,1715276056427,-522.10603451,0.00041369,31]
[326712221,1715276056473,-831.1,0.00041369,31]
[326712222,1715276056520,-3338.74,0.00041369,31]
[326712223,1715276056793,-500.0,0.00041369,31]
[326712224,1715276056838,-500.0,0.00041369,31]
[326712225,1715276056883,-1663.03,0.00041369,31]
[326712226,1715276056929,-717.24,0.00041369,31]
[326712227,1715276056973,-500.0,0.00041369,31]
[326712228,1715276057017,-500.0,0.00041369,31]
[326712229,1715276057062,-1265.25,0.00041369,31]
[326712230,1715276057106,-500.0,0.00041369,31]
[326712231,1715276057157,-500.0,0.00041369,31]
[326712232,1715276057201,-500.0,0.00041369,31]
[326712233,1715276057247,-500.0,0.00041369,31]
[326712234,1715276057294,-813.06,0.00041369,31]
[326712235,1715276057340,-3107.42,0.00041369,31]
[326712236,1715276057385,-500.0,0.00041369,31]
[326712237,1715276057430,-788.46,0.00041369,31]
[326712238,1715276057475,-500.0,0.00041369,31]
[326712239,1715276057520,-500.0,0.00041369,31]
[326712240,1715276057564,-500.0,0.00041369,31]
[326712241,1715276057609,-3823.81,0.00041369,31]
[326712242,1715276057653,-500.0,0.00041369,31]
[326712243,1715276057697,-500.0,0.00041369,31]
[326712244,1715276057742,-1457.5,0.00041369,31]
[326712245,1715276057788,-500.0,0.00041369,31]
[326712246,1715276057833,-1032.73,0.00041369,31]
[326712247,1715276057878,-500.0,0.00041369,31]
[326712248,1715276057925,-1154.82,0.00041369,31]
[326712249,1715276057972,-500.0,0.00041369,31]
[326712250,1715276058021,-500.0,0.00041369,31]
[326712251,1715276058071,-500.0,0.00041369,31]
[326712252,1715276058120,-500.0,0.00041369,31]
[326712253,1715276058168,-751.66,0.00041369,31]
[326712254,1715276058216,-500.0,0.00041369,31]
[326712255,1715276058263,-500.0,0.00041369,31]
[326712256,1715276058312,-9947.17,0.00041369,31]
[326712257,1715276058360,-2108.8,0.00041369,31]
[326712258,1715276058411,-500.0,0.00041369,31]
[326712259,1715276058459,-5091.17,0.00041369,31]
[326712260,1715276058507,-500.0,0.00041369,31]
[326712261,1715276058554,-500.0,0.00041369,31]
[326712262,1715276058601,-1017.68,0.00041369,31]
[326712263,1715276058647,-500.0,0.00041369,31]
[326712264,1715276058694,-1538.84,0.00041369,31]
[326712265,1715276058743,-500.0,0.00041369,31]
[326712266,1715276058788,-500.0,0.00041369,31]
[326712267,1715276058834,-500.0,0.00041369,31]
[326712268,1715276058879,-500.0,0.00041369,31]
[326712269,1715276058925,-500.0,0.00041369,31]
[326712270,1715276058971,-185.75,0.00041369,31]
[326712271,1715276059018,-500.0,0.00041369,31]
[326712272,1715276059066,-500.0,0.00041369,31]
[326712273,1715276059114,-500.0,0.00041369,31]
[326712274,1715276059161,-500.0,0.00041369,31]
[326712275,1715276059209,-500.0,0.00041369,31]
[326712276,1715276059258,-2795.41,0.00041369,31]
[326712277,1715276059315,-500.0,0.00041369,31]
[326712278,1715276059366,-2196.3,0.00041369,31]
[326712279,1715276059415,-500.0,0.00041369,31]
[326712280,1715276059463,-500.0,0.00041369,31]
[326712281,1715276059511,-500.0,0.00041369,31]
[326712282,1715276059559,-500.0,0.00041369,31]
[326712283,1715276059607,-500.0,0.00041369,31]
[326712284,1715276059656,-1376.39,0.00041369,31]
[326712285,1715276059700,-500.0,0.00041369,31]
[326712286,1715276059745,-500.0,0.00041369,31]
[326712287,1715276059790,-500.0,0.00041369,31]
[326712288,1715276059835,-500.0,0.00041369,31]
[326712289,1715276059880,-500.0,0.00041369,31]
[326712290,1715276059925,-500.0,0.00041369,31]
[326712291,1715276059972,-500.0,0.00041369,31]
[326712292,1715276060019,-500.0,0.00041369,31]
[326712293,1715276060066,-500.0,0.00041369,31]
[326712294,1715276060110,-500.0,0.00041369,31]
[326712295,1715276060157,-395.77,0.00041369,31]
[326712296,1715276060203,-500.0,0.00041369,31]
[326712297,1715276060249,-500.0,0.00041369,31]
[326712298,1715276060312,-500.0,0.00041369,31]
[326712299,1715276060364,-5161.58,0.00041369,31]
[326712300,1715276060414,-500.0,0.00041369,31]
[326712301,1715276060461,-293.49173047,0.00041369,31]
[326712302,1715276060509,-500.0,0.00041369,31]
[326712303,1715276060556,-500.0,0.00041369,31]
[326712304,1715276060602,-500.0,0.00041369,31]
[326712305,1715276060646,-500.0,0.00041369,31]
[326712306,1715276060689,-500.0,0.00041369,31]
[326712307,1715276060732,-3569.05,0.00041369,31]
[326712308,1715276060776,-1620.33,0.00041369,31]
[326712309,1715276060824,-500.0,0.00041369,31]
[326712310,1715276060872,-3607.52,0.00041369,31]
[326712311,1715276060920,-1512.44,0.00041369,31]
[326712312,1715276060967,-500.0,0.00041369,31]
[326712313,1715276061013,-1000.0,0.00041369,31]
[326712314,1715276061058,-663.29,0.00041369,31]
[326712315,1715276061105,-1544.01,0.00041369,31]
[326712316,1715276061151,-1090.37,0.00041369,31]
[326712317,1715276061195,-521.60627847,0.00041369,31]
[326712318,1715276061241,-500.0,0.00041369,31]
[326712319,1715276061287,-500.0,0.00041369,31]
[326712320,1715276061332,-500.0,0.00041369,31]
[326712321,1715276061377,-500.0,0.00041369,31]
[326712322,1715276061423,-500.0,0.00041369,31]
[326712323,1715276061467,-500.0,0.00041369,31]
[326712324,1715276061515,-500.0,0.00041369,31]
[326712325,1715276061561,-500.0,0.00041369,31]
[326712326,1715276061606,-500.0,0.00041369,31]
[326712327,1715276061652,-500.0,0.00041369,31]
[326712328,1715276061932,-500.0,0.00041369,31]
[326712329,1715276061979,-11340.83,0.00041369,31]
[326712330,1715276062025,-25313.95,0.00041369,31]
[326712331,1715276062069,-4148.9,0.00041369,31]
[326712332,1715276062112,-500.0,0.00041369,31]
[326712333,1715276062156,-861.61,0.00041369,31]
[326712334,1715276062200,-500.0,0.00041369,31]
[326712335,1715276062243,-500.0,0.00041369,31]
[326712336,1715276062285,-500.0,0.00041369,31]
[326712337,1715276062328,-511.17076304,0.00041369,31]
[326712338,1715276062373,-500.0,0.00041369,31]
[326712339,1715276062416,-500.0,0.00041369,31]
[326712340,1715276062462,-500.0,0.00041369,31]
[326712341,1715276062507,-4211.36,0.00041369,31]
[326712342,1715276062551,-500.0,0.00041369,31]
[326712343,1715276062595,-1299.84,0.00041369,31]
[326712344,1715276062638,-500.0,0.00041369,31]
[326712345,1715276062680,-500.0,0.00041369,31]
[326712346,1715276062722,-500.0,0.00041369,31]
[326712347,1715276062766,-500.0,0.00041369,31]
[326712348,1715276062810,-500.0,0.00041369,31]
[326712349,1715276062852,-500.0,0.00041369,31]
[326712350,1715276062897,-500.0,0.00041369,31]
[326712351,1715276062940,-500.0,0.00041369,31]
[326712352,1715276062983,-500.0,0.00041369,31]
[326712353,1715276063028,-500.0,0.00041369,31]
[326712354,1715276063073,-500.0,0.00041369,31]
[326712355,1715276063118,-500.0,0.00041369,31]
[326712356,1715276063163,-5211.08,0.00041369,31]
[326712357,1715276063209,-1385.83,0.00041369,31]
[326712358,1715276063256,-864.2,0.00041369,31]
[326712359,1715276063307,-2572.3,0.00041369,31]
[326712360,1715276063353,-500.0,0.00041369,31]
[326712361,1715276063401,-170.79548284,0.00041369,31]
[326712362,1715276063453,-500.0,0.00041369,31]
[326712363,1715276063499,-500.0,0.00041369,31]
[326712364,1715276063547,-500.0,0.00041369,31]
[326712365,1715276063592,-500.0,0.00041369,31]
[326712366,1715276063637,-564.77,0.00041369,31]
[326712367,1715276063681,-500.0,0.00041369,31]
[326712368,1715276063723,-500.0,0.00041369,31]
[326712369,1715276063766,-500.0,0.00041369,31]
[326712370,1715276063811,-622.29978399,0.00041369,31]
[326712371,1715276063858,-500.0,0.00041369,31]
[326712372,1715276063908,-2143.66,0.00041369,31]
[326712373,1715276063955,-500.0,0.00041369,31]
[326712374,1715276064003,-572.45,0.00041369,31]
[326712375,1715276064048,-506.78361793,0.00041369,31]
[326712376,1715276064094,-500.0,0.00041369,31]
[326712377,1715276064141,-500.0,0.00041369,31]
[326712378,1715276064187,-1279.77,0.00041369,31]
[326712379,1715276064235,-500.0,0.00041369,31]
[326712380,1715276064282,-500.0,0.00041369,31]
[326712381,1715276064330,-2177.96,0.00041369,31]
[326712382,1715276064377,-500.0,0.00041369,31]
[326712383,1715276064431,-500.0,0.00041369,31]
[326712384,1715276064478,-1863.92,0.00041369,31]
[326712385,1715276064526,-791.82,0.00041369,31]
[326712386,1715276064586,-500.0,0.00041369,31]
[326712387,1715276064634,-500.0,0.00041369,31]
[326712388,1715276064682,-500.0,0.00041369,31]
[326712389,1715276064731,-500.0,0.00041369,31]
[326712390,1715276064778,-500.0,0.00041369,31]
[326712391,1715276064825,-504.29915121,0.00041369,31]
[326712392,1715276064874,-500.0,0.00041369,31]
[326712393,1715276064923,-500.0,0.00041369,31]
[326712394,1715276064972,-500.0,0.00041369,31]
[326712395,1715276065020,-642.25,0.00041369,31]
[326712396,1715276065067,-750.89,0.00041369,31]
[326712397,1715276065115,-1348.1,0.00041369,31]
[326712398,1715276065161,-500.0,0.00041369,31]
[326712399,1715276065206,-500.0,0.00041369,31]
[326712400,1715276065251,-500.0,0.00041369,31]
[326712401,1715276065298,-1196.83,0.00041369,31]
[326712402,1715276065344,-874.33,0.00041369,31]
[326712403,1715276065389,-500.0,0.00041369,31]
[326712404,1715276065439,-500.0,0.00041369,31]
[326712405,1715276065488,-500.0,0.00041369,31]
[326712406,1715276065533,-3768.54,0.00041369,31]
[326712407,1715276065577,-500.0,0.00041369,31]
[326712408,1715276065621,-500.0,0.00041369,31]
[326712409,1715276065666,-560.31,0.00041369,31]
[326712410,1715276065712,-500.0,0.00041369,31]
[326712411,1715276065759,-500.0,0.00041369,31]
[326712412,1715276065806,-500.0,0.00041369,31]
[326712413,1715276065852,-500.0,0.00041369,31]
[326712414,1715276065897,-500.0,0.00041369,31]
[326712415,1715276065940,-500.0,0.00041369,31]
[326712416,1715276065985,-500.0,0.00041369,31]
[326712417,1715276066030,-414.78,0.00041369,31]
[326712418,1715276066074,-500.0,0.00041369,31]
[326712419,1715276066123,-500.0,0.00041369,31]
[326712420,1715276066168,-334.42,0.00041369,31]
[326712421,1715276066211,-153.03,0.00041369,31]
[326712422,1715276066255,-428.16,0.00041369,31]
[326712423,1715276066298,-632.22,0.00041369,31]
[326712424,1715276066342,-500.0,0.00041369,31]
[326712425,1715276066386,-2001.49,0.00041369,31]
[326712426,1715276066430,-500.0,0.00041369,31]
[326712427,1715276066473,-500.0,0.00041369,31]
[326712428,1715276066517,-500.0,0.00041369,31]
[326712429,1715276066563,-602.82,0.00041369,31]
[326712430,1715276066606,-427.43,0.00041369,31]
[326712431,1715276066653,-535.47,0.00041369,31]
[326712432,1715276066865,-500.0,0.00041369,31]
[326712433,1715276066920,-1444.29,0.00041369,31]
[326712434,1715276066975,-500.0,0.00041369,31]
[326712435,1715276067020,-500.0,0.00041369,31]
[326712436,1715276067072,-500.0,0.00041369,31]
[326712437,1715276067120,-500.0,0.00041369,31]
[326712438,1715276067164,-500.0,0.00041369,31]
[326712439,1715276067215,-245.6648661,0.0004138,120]
[326712440,1715276067261,-735.57046416,0.000414,120]
[326712441,1715276067313,-115931.7140104,0.000415,60]
[326712442,1715276067359,-2883.9,0.00041503,30]
[326712443,1715276067408,-2883.9,0.00041503,30]
[326712444,1715276067454,-1000.0,0.00041553,30]
[326712445,1715276067500,-580.39047406,0.00041643,32]
[326712446,1715276067544,-500.0,0.00041643,32]
[326712447,1715276067586,-508.14003043,0.00041643,32]
[326712448,1715276067628,-504.89746483,0.00041643,32]
[326712449,1715276067670,-500.0,0.00041643,32]
[326712450,1715276067712,-500.0,0.00041643,32]
[326712451,1715276067756,-500.0,0.00041643,32]
[326712452,1715276067798,-500.0,0.00041643,32]
[326712453,1715276067841,-500.0,0.00041643,32]
[326712454,1715276067884,-434.73633328,0.00041643,32]
[326712455,1715276067932,-500.0,0.00041643,32]
[326712456,1715276067976,-500.0,0.00041643,32]
[326712457,1715276068019,-500.0,0.00041643,32]
[326712458,1715276068061,-500.0,0.00041643,32]
[326712459,1715276068103,-510.0,0.00041643,120]
[326712460,1715276068144,-503.11309992,0.00041643,32]
[326712461,1715276068187,-510.11791571,0.00041643,32]
[326712462,1715276068230,-500.0,0.00041643,32]
[326712463,1715276068277,-500.0,0.00041643,32]
[326712464,1715276068321,-500.0,0.00041643,32]
[326712465,1715276068366,-500.0,0.00041643,32]
[326712466,1715276068415,-505.28334117,0.00041643,32]
[326712467,1715276068461,-500.0,0.00041643,32]
[326712468,1715276068506,-500.0,0.00041643,32]
[326712469,1715276068553,-500.0,0.00041643,32]
[326712470,1715276068602,-516.18616367,0.00041643,32]
[326712471,1715276068646,-506.04641322,0.00041643,32]
[326712472,1715276068690,-506.82817371,0.00041643,32]
[326712473,1715276068734,-500.0,0.00041643,32]
[326712474,1715276068779,-500.0,0.00041643,32]
[326712475,1715276068821,-406.86404798,0.00041643,32]
[326712476,1715276068868,-500.0,0.00041643,32]
[326712477,1715276068914,-539.44441572,0.00041643,32]
[326712478,1715276068958,-518.67234288,0.00041643,32]
[326712479,1715276069004,-500.0,0.00041643,32]
[326712480,1715276069048,-500.0,0.00041643,32]
[326712481,1715276069091,-155.29265283,0.00041643,32]
[326712482,1715276069134,-500.0,0.00041643,32]
[326712483,1715276069179,-500.0,0.00041643,32]
[326712484,1715276069224,-500.0,0.00041643,32]
[326712485,1715276069267,-500.0,0.00041643,32]
[326712486,1715276069314,-509.32714896,0.00041643,32]
[326712487,1715276069358,-500.0,0.00041643,32]
[326712488,1715276069407,-500.0,0.00041643,32]
[326712489,1715276069451,-510.72647583,0.00041643,32]
[326712490,1715276069495,-500.0,0.00041643,32]
[326712491,1715276069541,-500.0,0.00041643,32]
[326712492,1715276069586,-500.0,0.00041643,32]
[326712493,1715276069630,-500.0,0.00041643,32]
[326712494,1715276069674,-500.0,0.00041643,32]
[326712495,1715276069717,-510.11043368,0.00041643,32]
[326712496,1715276069760,-500.0,0.00041643,32]
[326712497,1715276069805,-500.0,0.00041643,32]
[326712498,1715276069849,-500.0,0.00041643,32]
[326712499,1715276069893,-500.0,0.00041643,32]
[326712500,1715276069938,-500.0,0.00041643,32]
[326712501,1715276069985,-500.0,0.00041643,32]
[326712502,1715276070031,-529.75388103,0.00041643,32]
[326712503,1715276070078,-894.49,0.00041643,32]
[326712504,1715276070127,-348.75112324,0.00041643,32]
[326712505,1715276070175,-504.33898243,0.00041643,32]
[326712506,1715276070222,-500.0,0.00041643,32]
[326712507,1715276070267,-500.0,0.00041643,32]
[326712508,1715276070325,-500.0,0.00041643,32]
[326712509,1715276070372,-289.08911467,0.00041643,32]
[326712510,1715276070419,-503.51653389,0.00041643,32]
[326712511,1715276070464,-500.0,0.00041643,32]
[326712512,1715276070510,-500.0,0.00041643,32]
[326712513,1715276070554,-505.89526893,0.00041643,32]
[326712514,1715276070598,-500.0,0.00041643,32]
[326712515,1715276070642,-500.0,0.00041643,32]
[326712516,1715276070686,-500.0,0.00041643,32]
[326712517,1715276070730,-500.0,0.00041643,32]
[326712518,1715276070775,-500.0,0.00041643,32]
[326712519,1715276070819,-505.09414783,0.00041643,32]
[326712520,1715276070865,-500.0,0.00041643,32]
[326712521,1715276070910,-500.0,0.00041643,32]
[326712522,1715276070957,-500.0,0.00041643,32]
[326712523,1715276071001,-500.0,0.00041643,32]
[326712524,1715276071048,-500.0,0.00041643,32]
[326712525,1715276071092,-509.50912108,0.00041643,32]
[326712526,1715276071136,-500.0,0.00041643,32]
[326712527,1715276071180,-500.0,0.00041643,32]
[326712528,1715276071224,-500.0,0.00041643,32]
[326712529,1715276071268,-502.9521842,0.00041643,32]
[326712530,1715276071314,-500.0,0.00041643,32]
[326712531,1715276071356,-500.0,0.00041643,32]
[326712532,1715276071404,-507.17308121,0.00041643,32]
[326712533,1715276071452,-500.0,0.00041643,32]
[326712534,1715276071496,-529.1505184,0.00041643,32]
[326712535,1715276071542,-500.0,0.00041643,32]
[326712536,1715276071772,-500.0,0.00041643,32]
[326712537,1715276071818,-500.0,0.00041643,32]
[326712538,1715276071860,-500.0,0.00041643,32]
[326712539,1715276071903,-500.0,0.00041643,32]
[326712540,1715276071959,-500.0,0.00041643,32]
[326712541,1715276072010,-500.0,0.00041643,32]
[326712542,1715276072054,-500.0,0.00041643,32]
[326712543,1715276072098,-504.52599096,0.00041643,32]
[326712544,1715276072144,-515.31498471,0.00041643,32]
[326712545,1715276072191,-500.0,0.00041643,32]
[326712546,1715276072234,-504.00776794,0.00041643,32]
[326712547,1715276072278,-500.0,0.00041643,32]
[326712548,1715276072320,-510.34332977,0.00041643,32]
[326712549,1715276072371,-500.0,0.00041643,32]
[326712550,1715276072425,-1500.0,0.00041643,32]
[326712551,1715276072472,-500.0,0.00041643,32]
[326712552,1715276072520,-500.0,0.00041643,32]
[326712553,1715276072565,-500.0,0.00041643,32]
[326712554,1715276072608,-491.28332117,0.00041643,32]
[326712555,1715276072652,-500.0,0.00041643,32]
[326712556,1715276072697,-500.0,0.00041643,32]
[326712557,1715276072741,-500.0,0.00041643,32]
[326712558,1715276072783,-500.0,0.00041643,32]
[326712559,1715276072827,-519.73731632,0.00041643,32]
[326712560,1715276072868,-500.0,0.00041643,32]
[326712561,1715276072912,-500.0,0.00041643,32]
[326712562,1715276072955,-500.0,0.00041643,32]
[326712563,1715276073001,-505.22280908,0.00041643,32]
[326712564,1715276073047,-500.0,0.00041643,32]
[326712565,1715276073092,-500.0,0.00041643,32]
[326712566,1715276073137,-500.0,0.00041643,32]
[326712567,1715276073183,-500.0,0.00041643,32]
[326712568,1715276073228,-500.0,0.00041643,32]
[326712569,1715276073285,-557.56,0.00041643,32]
[326712570,1715276073331,-500.0,0.00041643,32]
[326712571,1715276073377,-500.0,0.00041643,32]
[326712572,1715276073422,-500.0,0.00041643,32]
[326712573,1715276073469,-503.45243749,0.00041643,32]
[326712574,1715276073513,-500.0,0.00041643,32]
[326712575,1715276073561,-579.52839167,0.00041643,32]
[326712576,1715276073606,-504.4807422,0.00041643,32]
[326712577,1715276073653,-504.29262944,0.00041643,32]
[326712578,1715276073699,-505.41017294,0.00041643,32]
[326712579,1715276073744,-500.0,0.00041643,32]
[326712580,1715276073788,-500.0,0.00041643,32]
[326712581,1715276073831,-527.15369115,0.00041643,32]
[326712582,1715276073878,-500.0,0.00041643,32]
[326712583,1715276073924,-500.0,0.00041643,32]
[326712584,1715276073971,-500.0,0.00041643,32]
[326712585,1715276074019,-500.0,0.00041643,32]
[326712586,1715276074066,-500.0,0.00041643,32]
[326712587,1715276074112,-673.29,0.00041643,32]
[326712588,1715276074158,-500.0,0.00041643,32]
[326712589,1715276074204,-500.0,0.00041643,32]
[326712590,1715276074248,-500.0,0.00041643,32]
[326712591,1715276074294,-500.0,0.00041643,32]
[326712592,1715276074338,-500.0,0.00041643,32]
[326712593,1715276074383,-500.0,0.00041643,32]
[326712594,1715276074429,-500.0,0.00041643,32]
[326712595,1715276074489,-500.0,0.00041643,32]
[326712596,1715276074548,-500.0,0.00041643,32]
[326712597,1715276074605,-500.0,0.00041643,32]
[326712598,1715276074656,-507.75796529,0.00041643,32]
[326712599,1715276074700,-500.0,0.00041643,32]
[326712600,1715276074744,-500.0,0.00041643,32]
[326712601,1715276074789,-500.0,0.00041643,32]
[326712602,1715276074835,-500.0,0.00041643,32]
[326712603,1715276074879,-500.0,0.00041643,32]
[326712604,1715276074925,-500.0,0.00041643,32]
[326712605,1715276074970,-500.0,0.00041643,32]
[326712606,1715276075025,-500.0,0.00041643,32]
[326712607,1715276075071,-500.0,0.00041643,32]
[326712608,1715276075115,-500.0,0.00041643,32]
[326712609,1715276075160,-500.0,0.00041643,32]
[326712610,1715276075206,-500.0,0.00041643,32]
[326712611,1715276075249,-559.57270274,0.00041643,32]
[326712612,1715276075292,-500.0,0.00041643,32]
[326712613,1715276075337,-500.0,0.00041643,32]
[326712614,1715276075382,-500.0,0.00041643,32]
[326712615,1715276075428,-500.0,0.00041643,32]
[326712616,1715276075471,-460.48050925,0.00041643,32]
[326712617,1715276075516,-500.0,0.00041643,32]
[326712618,1715276075560,-500.0,0.00041643,32]
[326712619,1715276075605,-500.0,0.00041643,32]
[326712620,1715276075649,-644.91151525,0.00041643,32]
[326712621,1715276075692,-500.0,0.00041643,32]
[326712622,1715276075736,-500.0,0.00041643,32]
[326712623,1715276075781,-500.0,0.00041643,32]
[326712624,1715276075824,-500.0,0.00041643,32]
[326712625,1715276075868,-659.73,0.00041643,32]
[326712626,1715276075914,-504.89698275,0.00041643,32]
[326712627,1715276075958,-500.0,0.00041643,32]
[326712628,1715276076003,-500.0,0.00041643,32]
[326712629,1715276076047,-500.0,0.00041643,32]
[326712630,1715276076092,-500.0,0.00041643,32]
[326712631,1715276076136,-500.0,0.00041643,32]
[326712632,1715276076182,-511.84597368,0.00041643,32]
[326712633,1715276076228,-500.0,0.00041643,32]
[326712634,1715276076273,-500.0,0.00041643,32]
[326712635,1715276076320,-500.0,0.00041643,32]
[326712636,1715276076364,-150.0,0.00041643,32]
[326712637,1715276076414,-500.0,0.00041643,32]
[326712638,1715276076460,-500.0,0.00041643,32]
[326712639,1715276076504,-512.18720956,0.00041643,32]
[326712640,1715276076712,-500.0,0.00041643,32]
[326712641,1715276076755,-500.0,0.00041643,32]
[326712642,1715276076797,-500.0,0.00041643,32]
[326712643,1715276076840,-515.45432446,0.00041643,32]
[326712644,1715276076883,-500.0,0.00041643,32]
[326712645,1715276076925,-500.0,0.00041643,32]
[326712646,1715276076968,-500.0,0.00041643,32]
[326712647,1715276077015,-750.0,0.00041643,30]
[326712648,1715276077060,-500.0,0.00041643,32]
[326712649,1715276077104,-500.0,0.00041643,32]
[326712650,1715276077148,-200.0,0.00041643,32]
[326712651,1715276077191,-500.0,0.00041643,32]
[326712652,1715276077234,-599.9977915,0.00041643,32]
[326712653,1715276077280,-500.0,0.00041643,32]